bitfinex-derivatives/quotes_BNBF0:USTF0_20250331
["timestamp","ask_amount","ask_price","bid_price","bid_amount"]
[1743415611876,1.44988001,589.99,588.53,0.27502314]
[1743415612078,4.14056881,590.01,588.07,0.29530566]
[1743415612079,1.44988001,589.98,588.55,0.33981819]
[1743415612271,3.16709424,589.97,588.56,0.27502314]
[1743415612476,3.16709424,589.97,588.55,0.33981819]
[1743415612477,3.16709424,589.97,588.57,0.27502314]
[1743415612675,3.16709424,589.97,588.58,0.27502314]
[1743415612973,1.2164049,589.96,588.59,0.61481824]
[1743415613178,1.2164049,589.96,588.61,0.33978355]
[1743415613478,1.2164049,589.95,588.62,0.27502314]
[1743415613677,1.2164049,589.95,588.64,0.33976624]
[1743415613877,1.5116617,589.95,588.65,0.27502314]
[1743415614178,1.2164049,589.94,588.66,0.27502314]
[1743415614377,1.2164049,589.94,588.67,0.27502314]
[1743415614577,1.2164049,589.94,588.69,0.33973738]
[1743415614778,1.2164049,589.93,588.7,0.27502314]
[1743415614978,1.2164049,589.93,588.72,0.33972007]
[1743415615180,1.2164049,589.93,588.73,0.27502314]
[1743415615374,1.94486265,589.92,588.75,0.33970276]
[1743415615579,2.84254115,589.91,588.75,0.33970276]
[1743415615778,2.33397268,589.9,588.75,0.33970276]
[1743415616078,6.10873908,589.89,588.75,0.33970276]
[1743415616277,6.10873908,589.88,588.75,0.33970276]
[1743415616472,6.10873908,589.87,588.76,0.2749697]
[1743415616673,6.10873908,589.86,588.77,0.33969122]
[1743415616873,6.10873908,589.85,588.77,0.61466092]
[1743415617077,6.10873908,589.84,588.78,0.2749697]
[1743415617273,3.84371776,589.85,588.79,0.61464938]
[1743415617274,4.6724449,589.83,588.79,0.61464938]
[1743415617476,4.13897707,589.85,588.48,0.29525931]
[1743415617477,4.6724449,589.82,588.8,0.61464361]
[1743415617676,4.6724449,589.81,588.81,0.61463784]
[1743415617878,3.84371776,589.82,588.48,0.29525931]
[1743415617879,4.67363457,589.8,588.82,0.61463207]
[1743415618175,4.67363457,589.79,588.83,0.6146263]
[1743415618381,2.34951173,589.78,588.84,0.61462053]
[1743415618581,2.34951173,589.77,588.85,0.61461477]
[1743415618781,2.34951173,589.76,588.86,0.2749697]
[1743415618981,2.34951173,589.75,588.86,0.2749697]
[1743415619175,2.34951173,589.74,588.86,0.2749697]
[1743415619376,1.45183323,589.73,588.86,0.2749697]
[1743415619579,1.45183323,589.72,588.86,0.2749697]
[1743415619781,1.45183323,589.71,588.87,0.33963353]
[1743415619983,1.45183323,589.7,588.88,0.27498704]
[1743415620180,1.45183323,589.69,588.88,0.27498704]
[1743415620483,3.16907737,589.69,588.89,0.339622]
[1743415620680,3.16907737,589.69,588.9,0.27498704]
[1743415621184,3.16907737,589.68,588.9,0.27498704]
[1743415621780,3.16907737,589.67,588.9,0.27498704]
[1743415622583,4.62328115,589.66,588.9,0.27498704]
[1743415622776,3.16907737,589.66,588.9,0.27498704]
[1743415622991,3.16907737,589.65,588.9,0.27498704]
[1743415623582,3.16907737,589.64,588.9,0.27498704]
[1743415624077,0.29526557,589.75,588.9,0.27498704]
[1743415624484,1.45493827,589.74,588.89,0.339622]
[1743415624685,3.17340686,589.74,588.9,0.27501732]
[1743415624985,3.17340686,589.73,588.9,0.27501732]
[1743415625180,1.45522453,589.72,588.9,0.27501732]
[1743415625379,1.45522453,589.71,588.9,0.27501732]
[1743415625579,3.17340686,589.73,588.9,0.27501732]
[1743415625781,3.85167087,589.7,588.9,0.27501732]
[1743415625985,1.45517215,589.69,588.9,0.27501732]
[1743415626183,1.45515108,589.68,588.9,0.27501732]
[1743415626384,0.29529814,589.69,588.91,0.27505062]
[1743415626589,3.17340686,589.67,588.92,0.27505062]
[1743415626788,3.17340686,589.67,588.93,0.27505062]
[1743415626985,3.17340686,589.67,588.9,0.27505062]
[1743415627185,3.17340686,589.67,588.91,0.27505062]
[1743415627390,3.17340686,589.67,588.9,0.27505062]
[1743415627594,3.17340686,589.67,588.91,0.27505062]
[1743415627792,1.2205411,589.66,588.92,0.27505062]
[1743415627991,1.2205411,589.66,588.93,0.27505062]
[1743415628193,1.2205411,589.65,588.9,0.27505062]
[1743415628494,1.2205411,589.65,588.91,0.27505062]
[1743415628694,1.2205411,589.65,588.92,0.27505062]
[1743415628894,1.2205411,589.64,588.9,0.27505062]
[1743415629192,1.2205411,589.64,588.91,0.27505062]
[1743415629394,1.2205411,589.64,588.92,0.27505062]
[1743415629693,1.2205411,589.64,588.89,0.339622]
[1743415629694,1.2205411,589.64,588.93,0.27505062]
[1743415629886,0.29529814,589.69,588.94,0.27505062]
[1743415630090,0.29529814,589.69,588.95,0.27505062]
[1743415630291,0.29529814,589.69,588.96,0.27505062]
[1743415630492,0.29529814,589.69,588.9,0.27505062]
[1743415630687,0.29529814,589.69,588.89,0.339622]
[1743415630688,0.29529814,589.69,588.91,0.27505062]
[1743415630892,0.29529814,589.69,588.92,0.27505062]
[1743415631088,0.29529814,589.69,588.93,0.27505062]
[1743415631294,1.45782224,589.68,588.94,0.27505062]
[1743415631492,1.45782224,589.67,588.95,0.27505062]
[1743415631690,1.45782224,589.66,588.96,0.27505062]
[1743415631889,1.45782224,589.66,588.89,0.339622]
[1743415631890,1.45774477,589.65,588.97,0.27502065]
[1743415632088,1.45774477,589.65,588.89,0.339622]
[1743415632089,1.45774477,589.64,588.98,0.27502065]
[1743415632292,1.45774477,589.63,588.99,0.27502065]
[1743415632496,3.17965905,589.63,589.0,0.27502065]
[1743415632697,3.17965905,589.63,589.01,0.27502065]
[1743415632891,3.17965905,589.63,588.89,0.339622]
[1743415632892,3.17965905,589.63,589.02,0.27502065]
[1743415633199,3.17965905,589.62,589.03,0.27502065]
[1743415633393,3.17965905,589.62,588.9,0.27502065]
[1743415633596,3.17965905,589.62,588.91,0.27502065]
[1743415633794,3.17965905,589.62,588.92,0.27502065]
[1743415633992,3.17965905,589.61,588.93,0.27502065]
[1743415634203,3.17965905,589.61,588.94,0.27502065]
[1743415634391,3.17965905,589.61,588.89,0.339622]
[1743415634392,3.17965905,589.61,588.95,0.27502065]
[1743415634596,3.17965905,589.6,588.96,0.27502065]
[1743415634796,3.17965905,589.6,588.97,0.27502065]
[1743415634994,3.17965905,589.6,588.89,0.339622]
[1743415635203,1.22294579,589.59,588.9,0.2750236]
[1743415635402,1.22294579,589.59,588.91,0.2750236]
[1743415635603,1.22294579,589.59,588.92,0.2750236]
[1743415635795,1.22294579,589.58,588.93,0.2750236]
[1743415635999,1.22294579,589.58,588.94,0.2750236]
[1743415636300,1.22294579,589.57,588.95,0.2750236]
[1743415636496,1.22294579,589.57,588.89,0.339622]
[1743415636497,1.22294579,589.57,588.96,0.2750236]
[1743415636696,1.22294579,589.56,588.9,0.2750236]
[1743415636903,1.22294579,589.56,588.91,0.27502302]
[1743415637102,1.22294579,589.56,588.9,0.27502302]
[1743415637504,0.29530566,589.65,588.9,0.27502302]
[1743415637906,0.29530566,589.65,588.89,0.339622]
[1743415638099,3.19229115,589.64,588.9,0.27502237]
[1743415638703,1.22780429,589.63,588.9,0.27502237]
[1743415639402,1.22780429,589.62,588.9,0.27502237]
[1743415639808,0.29530566,589.65,588.9,0.27502237]
[1743415639809,1.22780429,589.61,588.9,0.27502237]
[1743415640313,1.22780429,589.61,588.91,0.27502237]
[1743415640505,1.22780429,589.61,588.92,0.27502237]
[1743415640704,0.90611058,589.86,588.93,0.61453914]
[1743415640907,2.37172645,589.85,588.94,0.27494021]
[1743415641109,2.37172645,589.84,588.95,0.27494021]
[1743415641310,1.46561587,589.83,588.96,0.27494021]
[1743415641508,1.46561587,589.83,588.93,0.33959893]
[1743415641509,1.46561587,589.82,588.97,0.27494021]
[1743415641711,3.49138534,589.85,588.98,0.27494021]
[1743415641911,4.66256179,589.84,588.99,0.27494021]
[1743415642111,1.46640445,589.83,588.94,0.27494021]
[1743415642314,3.19615734,589.84,588.93,0.33959893]
[1743415642513,4.66314471,589.83,588.94,0.27493955]
[1743415642807,1.46698737,589.82,588.95,0.27493955]
[1743415643011,3.19615734,589.83,588.96,0.27493955]
[1743415643208,1.96686606,589.82,588.97,0.27493955]
[1743415643413,3.19615734,589.82,588.98,0.27493955]
[1743415643716,3.19615734,589.82,588.99,0.27493955]
[1743415643908,3.19615734,589.82,589.0,0.27493955]
[1743415644111,2.99190027,589.81,588.94,0.27493955]
[1743415644414,1.46737598,589.8,588.95,0.27493955]
[1743415644614,3.19955396,589.8,588.96,0.27493955]
[1743415644814,3.19955396,589.8,588.97,0.27493955]
[1743415645018,3.19955396,589.8,588.98,0.27493955]
[1743415645216,3.19955396,589.8,588.99,0.27493955]
[1743415645413,0.29523301,589.81,589.0,0.27493955]
[1743415645609,0.29523301,589.81,589.01,0.27493955]
[1743415645812,1.45342105,589.98,589.02,0.61448659]
[1743415646010,0.29517541,589.91,589.03,0.61448082]
[1743415646210,0.29517541,589.91,589.04,0.61447506]
[1743415646510,3.20444109,589.97,589.05,0.6144693]
[1743415646710,3.20444109,589.97,589.06,0.27493955]
[1743415646916,0.33896581,590.03,589.07,0.27493955]
[1743415647112,0.29516915,589.96,589.08,0.27493955]
[1743415647311,0.33896581,590.03,589.09,0.27493955]
[1743415647508,1.47060058,590.02,589.1,0.27493955]
[1743415647708,3.20740262,590.02,589.11,0.27493955]
[1743415647914,3.20740262,590.02,589.12,0.27493955]
[1743415648111,1.47105918,590.01,589.13,0.27493955]
[1743415648311,3.20740262,590.02,589.14,0.27493955]
[1743415648514,1.23361639,590.01,589.15,0.27493955]
[1743415648712,0.29516414,590.0,589.16,0.27493955]
[1743415648916,0.29516414,590.0,589.17,0.27493955]
[1743415649111,0.29516414,590.0,589.18,0.27493955]
[1743415649313,1.47110328,589.99,589.19,0.27493955]
[1743415649517,0.29516414,590.0,589.2,0.27493955]
[1743415649821,4.67955141,589.99,589.21,0.27493955]
[1743415650018,3.2084987,589.99,589.22,0.27493955]
[1743415650212,3.2084987,589.99,589.23,0.27493955]
[1743415650411,3.2084987,589.99,589.24,0.27493955]
[1743415650719,0.29516414,590.0,589.25,0.27493955]
[1743415651018,0.29516414,590.0,589.26,0.27493955]
[1743415651212,0.29516414,590.0,589.05,0.33952975]
[1743415651213,0.29516414,590.0,589.27,0.27493955]
[1743415651422,0.29516414,590.0,589.28,0.27493955]
[1743415651611,0.29516414,590.0,589.29,0.27493955]
[1743415651811,0.29516414,590.0,589.3,0.27493955]
[1743415652014,3.8097266,590.2,589.31,0.27493955]
[1743415652217,0.29510657,590.04,589.06,0.27493955]
[1743415652417,0.29510657,590.04,589.07,0.27493955]
[1743415652616,3.88733409,590.19,589.08,0.27493955]
[1743415652820,4.73518159,590.18,589.09,0.27493955]
[1743415653018,4.73518159,590.17,589.1,0.33950093]
[1743415653234,4.34519525,590.16,589.11,0.27481973]
[1743415653418,3.88733409,590.18,589.1,0.33950093]
[1743415653419,6.69925772,590.15,589.12,0.27481973]
[1743415653714,1.6788627,590.13,589.13,0.61430337]
[1743415653921,6.69925772,590.12,589.14,0.61429761]
[1743415654112,6.69925772,590.11,589.15,0.61429185]
[1743415654315,6.69925772,590.1,589.16,0.61428608]
[1743415654517,1.6788627,590.13,589.17,0.61428032]
[1743415654518,6.1909389,590.09,589.17,0.61428032]
[1743415654714,6.1909389,590.08,589.18,0.61427456]
[1743415654919,6.1909389,590.07,589.19,0.27481973]
[1743415655120,6.1909389,590.06,589.2,0.27481973]
[1743415655320,8.62244381,590.05,589.21,0.27481973]
[1743415655518,4.73510972,590.04,589.22,0.27481973]
[1743415655721,8.62244381,590.03,589.23,0.27481973]
[1743415655921,4.73510972,590.02,589.24,0.27481973]
[1743415656121,2.38104725,590.01,589.25,0.27481973]
[1743415656318,2.38104725,590.0,589.26,0.27481973]
[1743415656519,2.38104725,589.99,589.27,0.27481973]
[1743415656823,1.47133396,589.98,589.28,0.27481973]
[1743415657015,3.20957056,589.97,589.29,0.27481973]
[1743415657227,3.20957056,589.97,589.3,0.27481973]
[1743415657427,3.20957056,589.97,589.31,0.27481973]
[1743415657721,1.46996295,589.96,589.32,0.27481973]
[1743415657922,1.23445021,589.96,589.19,0.27481973]
[1743415658123,1.23445021,589.96,589.2,0.27481973]
[1743415658422,1.23445021,589.96,589.21,0.27481973]
[1743415658622,1.23445021,589.95,589.22,0.27481973]
[1743415658824,2.3778531,589.94,589.19,0.27481973]
[1743415659016,2.3778531,589.93,589.2,0.27481973]
[1743415659220,2.3778531,589.92,589.21,0.27481973]
[1743415659416,1.4693582,589.91,589.22,0.27481973]
[1743415659618,1.4693582,589.9,589.23,0.27481973]
[1743415659824,1.4693582,589.89,589.18,0.33945483]
[1743415660118,1.23445021,589.88,589.19,0.27486463]
[1743415660824,1.23445021,589.87,589.19,0.27486463]
[1743415661427,1.23445021,589.86,589.19,0.27486463]
[1743415661726,1.23445021,589.85,589.18,0.33945483]
[1743415661921,1.23445021,589.85,589.19,0.27486462]
[1743415662320,0.29512159,590.04,589.19,0.27486462]
[1743415662519,6.18012634,590.03,589.19,0.27486462]
[1743415662723,6.18012634,590.02,589.19,0.27486462]
[1743415662926,6.18014614,590.01,589.19,0.27486462]
[1743415663126,4.72709008,590.0,589.19,0.27486462]
[1743415663323,4.72709008,589.99,589.19,0.27486462]
[1743415663522,2.37698357,589.98,589.18,0.33945483]
[1743415663728,2.37698357,589.97,589.19,0.27486241]
[1743415663927,2.37698357,589.96,589.19,0.27486241]
[1743415664124,2.37698357,589.95,589.19,0.27486241]
[1743415664329,1.46881657,589.94,589.19,0.27486241]
[1743415664529,1.46881657,589.93,589.19,0.27486241]
[1743415664726,3.20347992,589.93,589.19,0.27486241]
[1743415665225,3.4986328,589.93,589.19,0.27486241]
[1743415665426,1.23210766,589.92,589.19,0.27486241]
[1743415666026,1.23210766,589.91,589.19,0.27486241]
[1743415666831,1.23210766,589.9,589.19,0.27486241]
[1743415667433,1.23210766,589.89,589.19,0.27486241]
[1743415667630,1.46721188,589.88,589.19,0.27486241]
[1743415667826,2.37434511,589.87,589.19,0.27486241]
[1743415668025,1.46721188,589.86,589.19,0.27486241]
[1743415668230,1.46721188,589.85,589.19,0.27486241]
[1743415668429,1.46716258,589.84,589.19,0.27486241]
[1743415668628,3.20138403,589.84,589.19,0.27486241]
[1743415669437,0.29517541,589.87,589.19,0.27486241]
[1743415669937,4.30652137,590.16,589.19,0.27486241]
[1743415670137,6.68038444,590.15,589.19,0.27486241]
[1743415670336,6.17189985,590.14,589.19,0.27486241]
[1743415670533,6.17189985,590.13,589.19,0.27486241]
[1743415670835,6.17189985,590.12,589.19,0.27486241]
[1743415671035,6.17189985,590.11,589.19,0.27486241]
[1743415671336,6.17189985,590.1,589.19,0.27486241]
[1743415671531,6.17189985,590.09,589.19,0.27486241]
[1743415671733,6.17189985,590.08,589.19,0.27486241]
[1743415671930,4.72077372,590.07,589.19,0.27486241]
[1743415672134,4.72077372,590.06,589.19,0.27486241]
[1743415672335,4.72089237,590.05,589.19,0.27486241]
[1743415672632,2.37383573,590.04,589.19,0.27486241]
[1743415672831,2.37383573,590.03,589.19,0.27486241]
[1743415673037,2.37383573,590.02,589.19,0.27486241]
[1743415673230,2.37389454,590.01,589.19,0.27486241]
[1743415673428,1.46685657,590.0,589.19,0.27486241]
[1743415673633,1.46685657,589.99,589.19,0.27486241]
[1743415673838,3.19961372,589.99,589.19,0.27486241]
[1743415674431,1.23062066,589.98,589.19,0.27486241]
[1743415675132,2.69814183,589.97,589.19,0.27486241]
[1743415675333,1.46758421,589.96,589.19,0.27486241]
[1743415675535,0.90740824,589.95,589.19,0.27486241]
[1743415675737,4.7230476,589.94,589.19,0.27486241]
[1743415675937,2.37496184,589.93,589.19,0.27486241]
[1743415676134,2.37496184,589.92,589.19,0.27486241]
[1743415676333,2.37496184,589.91,589.19,0.27486241]
[1743415676638,2.37496184,589.9,589.19,0.27486241]
[1743415676840,1.4675536,589.89,589.19,0.27486241]
[1743415677034,1.4675536,589.88,589.19,0.27486241]
[1743415677233,1.4675536,589.87,589.19,0.27486241]
[1743415677438,1.4675536,589.86,589.19,0.27486241]
[1743415677636,1.23062066,589.87,589.19,0.27486241]
[1743415677836,1.46766009,589.86,589.19,0.27486241]
[1743415678038,1.23062066,589.86,589.19,0.27486241]
[1743415678540,1.23062066,589.85,589.19,0.27486241]
[1743415679240,1.23062066,589.84,589.19,0.27486241]
[1743415680235,1.23062066,589.83,589.19,0.27486241]
[1743415680435,2.37567116,589.82,589.19,0.27486241]
[1743415680637,4.72417694,589.81,589.19,0.27486241]
[1743415680837,2.37554075,589.8,589.2,0.27486241]
[1743415681038,2.37554075,589.79,589.19,0.27486241]
[1743415681234,3.20082585,589.82,589.2,0.27486241]
[1743415681235,2.37554075,589.78,589.2,0.27486241]
[1743415681439,1.46789761,589.77,589.21,0.27486241]
[1743415681639,1.46789761,589.76,588.81,0.27486241]
[1743415681841,3.20082585,589.78,588.82,0.61452478]
[1743415682038,1.46809778,589.77,588.83,0.61451901]
[1743415682341,1.46809778,589.76,588.84,0.61451324]
[1743415682548,1.46809778,589.75,588.85,0.61450748]
[1743415682748,4.72449236,589.74,588.86,0.27486241]
[1743415682947,6.68509655,589.73,588.87,0.27486241]
[1743415683248,6.17637088,589.72,588.88,0.27486241]
[1743415683546,6.17590211,589.71,588.89,0.27486241]
[1743415683745,4.72355052,589.7,588.9,0.27486241]
[1743415683941,4.72355052,589.7,588.85,0.33964507]
[1743415683942,2.37585001,589.69,588.91,0.27486241]
[1743415684144,2.37585001,589.68,588.85,0.33964507]
[1743415684343,2.37525074,589.67,588.86,0.27507285]
[1743415684545,1.46809778,589.66,588.86,0.27507285]
[1743415684742,1.46809778,589.65,588.86,0.27507285]
[1743415684941,3.20082585,589.68,588.86,0.27507285]
[1743415684942,1.46809778,589.64,588.86,0.27507285]
[1743415685148,3.20082585,589.65,588.86,0.27507285]
[1743415685448,1.76245278,589.64,588.86,0.27507285]
[1743415685644,3.49615532,589.64,588.86,0.27507285]
[1743415685842,3.49615532,589.64,588.87,0.27507285]
[1743415686049,1.23062066,589.64,588.86,0.27507285]
[1743415686242,0.90728904,589.82,588.87,0.27507285]
[1743415686449,0.2952806,589.74,588.87,0.27507285]
[1743415686643,0.2952806,589.74,588.88,0.27507285]
[1743415686846,3.20073055,589.81,588.89,0.27507285]
[1743415687049,0.29526181,589.73,588.85,0.33964507]
[1743415687349,1.23105021,589.73,588.86,0.27497297]
[1743415687551,1.23105021,589.73,588.87,0.27497297]
[1743415687749,0.29526933,589.82,588.88,0.27497297]
[1743415688044,0.29526933,589.82,588.89,0.27497297]
[1743415688354,0.29526933,589.82,588.9,0.27497297]
[1743415688555,0.29526933,589.82,588.91,0.27497297]
[1743415688747,0.29526933,589.82,588.92,0.27497297]
[1743415688944,0.29526933,589.82,588.93,0.27497297]
[1743415689144,0.29526933,589.82,588.94,0.61456613]
[1743415689450,0.29526933,589.82,588.95,0.61456037]
[1743415689651,0.29526933,589.82,588.96,0.27497297]
[1743415689857,0.29526933,589.82,588.97,0.27497297]
[1743415690054,0.29526933,589.82,588.98,0.27497297]
[1743415690255,0.29526933,589.82,588.99,0.6145373]
[1743415690458,0.29526933,589.82,589.0,0.61453154]
[1743415690757,0.29526933,589.82,589.01,0.61452577]
[1743415691055,0.67799141,590.02,589.02,0.61452001]
[1743415691257,0.29517541,589.88,589.03,0.27497297]
[1743415691658,0.67799141,590.01,589.04,0.27497297]
[1743415691958,8.60452868,590.0,589.05,0.27497297]
[1743415692251,8.60452868,589.99,589.06,0.27497297]
[1743415692457,2.37576081,589.98,589.07,0.27497297]
[1743415692657,2.37576081,589.97,589.08,0.27497297]
[1743415692954,2.37576081,589.96,589.02,0.33954704]
[1743415693158,2.37576081,589.95,589.03,0.27487992]
[1743415693359,1.46805788,589.94,589.04,0.61441543]
[1743415693554,1.46805788,589.93,589.05,0.61440967]
[1743415693752,1.46805788,589.92,589.06,0.27487992]
[1743415693954,1.23149379,589.91,589.07,0.27487992]
[1743415694156,1.23149379,589.91,589.08,0.27487992]
[1743415694352,1.5266692,589.91,589.09,0.27487992]
[1743415694559,1.5266692,589.91,589.1,0.27487992]
[1743415694757,1.23149379,589.9,589.05,0.33952975]
[1743415694958,1.23149379,589.9,589.06,0.27487835]
[1743415695158,1.23149379,589.9,589.07,0.27487835]
[1743415695360,2.69946234,589.89,589.08,0.27487835]
[1743415695563,3.81646829,589.88,589.06,0.27487835]
[1743415695753,6.17630543,589.87,589.06,0.27487835]
[1743415695953,6.68495687,589.86,589.06,0.27487835]
[1743415696258,6.68495687,589.85,589.06,0.27487835]
[1743415696462,7.59180529,589.84,589.06,0.27487835]
[1743415696759,6.68260917,589.83,589.07,0.27502419]
[1743415696961,6.68260917,589.82,589.08,0.27502419]
[1743415697255,6.68260917,589.81,589.09,0.27502419]
[1743415697463,6.68262848,589.8,588.71,0.27502419]
[1743415697662,6.68262848,589.79,588.72,0.27502419]
[1743415697859,1.6788627,589.75,588.73,0.27502419]
[1743415698157,6.17394311,589.74,588.74,0.27502419]
[1743415698362,1.6788627,589.71,588.75,0.27502419]
[1743415698561,6.17394311,589.7,588.76,0.27502419]
[1743415698766,6.17394311,589.69,588.6,0.27502419]
[1743415699060,10.05329869,589.68,588.61,0.61480774]
[1743415699262,3.87935558,589.68,588.62,0.27502419]
[1743415699458,3.87935558,589.68,588.63,0.27502419]
[1743415699655,1.6788627,589.96,588.64,0.27502419]
[1743415699861,6.16944802,589.9,588.66,0.33975469]
[1743415700060,10.04567394,589.89,588.67,0.27502419]
[1743415700266,2.37286462,589.88,588.68,0.27502419]
[1743415700458,2.37286462,589.87,588.69,0.27497061]
[1743415700758,7.91722171,589.86,588.7,0.27497061]
[1743415700957,2.37298887,589.85,588.71,0.27497061]
[1743415701161,3.19807301,589.86,588.72,0.27497061]
[1743415701370,3.19807301,589.86,588.73,0.27497061]
[1743415701662,3.19807301,589.84,588.74,0.61467914]
[1743415701860,3.19807301,589.84,588.76,0.33969699]
[1743415702061,3.19807301,589.84,588.77,0.27497061]
[1743415702258,1.23002808,589.83,588.77,0.27497061]
[1743415702468,1.46644397,589.82,588.78,0.33968545]
[1743415702759,1.23002808,589.81,588.79,0.27497061]
[1743415702958,1.23002808,589.81,588.8,0.33967391]
[1743415703167,1.23002808,589.81,588.81,0.27497061]
[1743415703463,0.29525179,589.9,588.81,0.27497061]
[1743415703464,1.23002808,589.8,588.81,0.27497061]
[1743415703662,1.23002808,589.8,588.82,0.33966237]
[1743415703857,1.23002808,589.8,588.83,0.27497061]
[1743415704267,1.23002808,589.79,588.83,0.27497061]
[1743415704772,1.23002808,589.79,588.84,0.33965083]
[1743415704959,1.23002808,589.78,588.85,0.27497061]
[1743415705160,1.23002808,589.78,588.86,0.3396393]
[1743415705363,1.23002808,589.78,588.87,0.27497061]
[1743415705564,1.23002808,589.78,588.88,0.33962776]
[1743415705759,0.29525179,589.9,588.89,0.27495492]
[1743415705964,2.37294972,589.89,588.9,0.33961623]
[1743415706160,4.71900368,589.88,588.91,0.27495492]
[1743415706359,4.71900368,589.87,588.92,0.3396047]
[1743415706562,2.37294228,589.86,588.93,0.27495492]
[1743415706762,2.37294228,589.85,588.94,0.33959316]
[1743415706960,2.37294228,589.84,588.95,0.27495492]
[1743415707161,5.57106142,589.83,588.95,0.27495492]
[1743415707369,2.37294228,589.82,588.95,0.27495492]
[1743415707660,2.37294228,589.81,588.95,0.27495492]
[1743415707859,2.37294228,589.8,588.95,0.61454232]
[1743415708061,1.46630047,589.79,588.96,0.27495492]
[1743415708263,1.46629255,589.78,588.96,0.27495492]
[1743415708464,3.19811914,589.8,588.96,0.27495492]
[1743415708659,1.46639264,589.79,588.96,0.27495492]
[1743415708866,1.46639264,589.78,588.96,0.27495492]
[1743415709067,1.23004582,589.79,588.96,0.27495492]
[1743415709267,2.696546,589.78,588.96,0.27495492]
[1743415709465,1.23004582,589.78,588.96,0.27495492]
[1743415709865,1.23004582,589.77,588.96,0.27495492]
[1743415710360,1.23004582,589.76,588.97,0.27495492]
[1743415710561,1.23004582,589.76,588.98,0.27495492]
[1743415710866,1.23004582,589.75,588.99,0.27495492]
[1743415711169,1.23004582,589.75,589.0,0.27495492]
[1743415711363,1.23004582,589.75,589.01,0.27495492]
[1743415711573,1.23004582,589.74,589.02,0.27495492]
[1743415711764,6.16924585,589.73,588.96,0.27495492]
[1743415711968,6.16924585,589.72,588.97,0.27495492]
[1743415712167,6.16865837,589.71,588.96,0.27495492]
[1743415712367,6.16865837,589.7,588.97,0.27495492]
[1743415712668,6.16823933,589.69,588.98,0.27495492]
[1743415712864,6.67702585,589.68,588.96,0.27495492]
[1743415713062,6.16823933,589.67,588.97,0.27495492]
[1743415713261,10.55314455,589.66,588.59,0.27495492]
[1743415713468,6.16823933,589.65,588.6,0.27510201]
[1743415713670,6.16823933,589.65,588.58,0.29531192]
[1743415713671,6.67707495,589.64,588.61,0.61488556]
[1743415713868,8.35593765,589.63,588.62,0.27510201]
[1743415714070,8.35593765,589.63,588.63,0.27510201]
[1743415714071,6.67707495,589.62,588.63,0.27510201]
[1743415714271,1.67332636,589.6,588.64,0.27510201]
[1743415714469,1.67332636,589.6,588.62,0.27510201]
[1743415714470,1.6788627,589.53,588.62,0.27510201]
[1743415714673,6.67707495,589.52,588.65,0.27510201]
[1743415714870,6.67707495,589.52,588.61,0.33978355]
[1743415714871,1.6788627,589.5,588.63,0.27510201]
[1743415715064,1.6788627,589.48,588.66,0.27510201]
[1743415715268,6.67717822,589.47,588.67,0.27510201]
[1743415715571,6.16823933,589.46,588.68,0.27510201]
[1743415715768,6.16823933,589.45,588.69,0.27510201]
[1743415715966,6.16823933,589.45,588.62,0.27510201]
[1743415715967,6.15940047,589.44,588.62,0.27510201]
[1743415716169,6.15940047,589.43,588.63,0.27510201]
[1743415716365,6.15940047,589.42,588.63,0.27510201]
[1743415716573,6.15940047,589.41,588.64,0.27510201]
[1743415716875,6.15940047,589.4,588.65,0.27510201]
[1743415717072,6.15940047,589.39,588.62,0.27510201]
[1743415717271,4.70914565,589.38,588.63,0.27510201]
[1743415717469,4.70914565,589.38,588.61,0.33978355]
[1743415717470,4.70914565,589.37,588.64,0.27510201]
[1743415717673,4.70914565,589.36,588.65,0.27510201]
[1743415717971,3.87611612,589.38,588.61,0.33978355]
[1743415717972,2.36900018,589.35,588.66,0.27510201]
[1743415718167,2.36900018,589.34,588.67,0.27520572]
[1743415718370,3.87611612,589.35,588.68,0.27520572]
[1743415718567,1.6788627,589.46,588.61,0.33978355]
[1743415718568,3.87611612,589.33,588.69,0.27520572]
[1743415718767,2.36446484,589.32,588.62,0.27520572]
[1743415718972,1.46099079,589.31,588.63,0.27520572]
[1743415719273,4.65882373,589.3,588.64,0.27520572]
[1743415719474,1.46099079,589.29,588.65,0.27520572]
[1743415719667,3.19783294,589.3,588.62,0.27520572]
[1743415719866,1.46041882,589.29,588.63,0.27520572]
[1743415720067,0.29546738,589.28,588.64,0.27520572]
[1743415720273,3.49330032,589.28,588.65,0.27520572]
[1743415720472,3.49330032,589.28,588.62,0.27520572]
[1743415720774,3.19783294,589.27,588.63,0.27520572]
[1743415720975,3.19783294,589.27,588.62,0.27520572]
[1743415721171,3.19783294,589.27,588.63,0.27520572]
[1743415721372,3.19783294,589.27,588.62,0.27520572]
[1743415721575,0.29546738,589.28,588.63,0.27519599]
[1743415721771,0.29546738,589.28,588.62,0.27519599]
[1743415722577,0.29546738,589.28,588.63,0.27519599]
[1743415722770,0.29546738,589.28,588.62,0.27519599]
[1743415723075,0.29546738,589.28,588.63,0.27519599]
[1743415723275,4.69746081,589.54,588.62,0.27519599]
[1743415723479,4.69746081,589.53,588.63,0.27519599]
[1743415723680,0.29541471,589.36,588.62,0.27519599]
[1743415723977,3.86162559,589.53,588.63,0.27519599]
[1743415724171,1.45926907,589.52,588.62,0.27519599]